bitfinex/quotes_ETHUSD_20260130
["timestamp","ask_amount","ask_price","bid_price","bid_amount"]
[1769740539261,3.873,2725.4,2725.1,13.22125017]
[1769740539562,0.50393908,2725.5,2725.1,13.22125017]
[1769740539754,0.06611831,2725.4,2725.1,13.22125017]
[1769740539929,0.19171588,2725.8,2725.0,3131.91662658]
[1769740540272,13.67950008,2727.1,2725.1,12.60936911]
[1769740540469,13.71,2726.8,2725.1,12.55936911]
[1769740540769,2.192,2726.4,2725.1,12.19441911]
[1769740540956,27.54,2726.9,2725.1,12.19441911]
[1769740541157,30.0,2726.7,2725.1,11.64441911]
[1769740541373,3.873,2726.3,2725.1,11.64441911]
[1769740541782,33.873,2726.2,2725.1,11.64441911]
[1769740542065,0.2335703,2726.0,2725.1,11.64441911]
[1769740542243,1856.43895431,2725.0,2724.1,12.95655129]
[1769740542444,1856.43895431,2725.0,2724.1,12.90687772]
[1769740542669,0.77,2724.9,2724.1,12.90687772]
[1769740543168,1851.43895431,2725.0,2724.1,12.90687772]
[1769740544362,0.77,2724.9,2724.1,12.90687772]
[1769740544562,1851.43895431,2725.0,2724.1,12.90687772]
[1769740545270,0.77,2724.9,2724.1,12.90687772]
[1769740545483,1851.43895431,2725.0,2724.1,12.90687772]
[1769740545977,0.77,2724.9,2724.1,12.90687772]
[1769740546181,1851.43895431,2725.0,2724.1,12.90687772]
[1769740546964,1809.41786986,2725.0,2723.4,1.84559144]
[1769740547154,1809.41786986,2725.0,2723.6,0.91789026]
[1769740547353,1809.41786986,2725.0,2722.8,3.67262055]
[1769740547354,1809.41786986,2725.0,2722.7,1.88146087]
[1769740547566,1809.41786986,2725.0,2723.5,5.5079358]
[1769740547761,1809.41786986,2725.0,2723.5,2.75412498]
[1769740547981,1809.41786986,2725.0,2723.5,0.91793647]
[1769740548298,0.77,2724.9,2723.4,0.1024]
[1769740548480,0.77,2724.9,2723.4,0.91796203]
[1769740549211,5.0,2724.8,2722.1,1.81859715]
[1769740549510,5.0,2724.8,2723.0,0.91810127]
[1769740549511,0.77,2724.7,2723.0,0.91810127]
[1769740549820,0.77,2724.7,2722.9,0.91813732]
[1769740550113,5.0,2724.6,2722.8,0.91817246]
[1769740550414,5.0,2724.6,2722.8,2.75288823]
[1769740550415,0.77,2724.6,2722.8,2.75288823]
[1769740550602,5.0,2724.5,2722.9,0.1024]
[1769740550918,5.77,2724.8,2723.0,0.28552882]
[1769740551647,5.0,2724.8,2723.0,0.28552882]
[1769740552314,5.0,2724.8,2723.1,0.91807131]
[1769740554417,5.0,2724.8,2723.2,0.1024]
[1769740554601,5.0,2724.8,2723.3,4.36234713]
[1769740554912,5.0,2724.8,2723.3,0.48934713]
[1769740555112,1809.41786986,2725.0,2723.4,0.1024]
[1769740555479,1808.31481514,2725.0,2723.6,3.9754]
[1769740555684,1808.31481514,2725.0,2723.7,0.5811605]
[1769740555916,1811.1087057,2725.0,2723.7,0.5811605]
[1769740556079,1811.1087057,2725.0,2723.6,0.1024]
[1769740556286,1810.00565098,2725.0,2723.6,0.1024]
[1769740556589,1806.1087057,2725.0,2723.7,0.91786907]
[1769740556789,1808.90293278,2725.0,2723.8,0.1024]
[1769740557112,1807.80021458,2725.0,2723.8,0.1024]
[1769740557509,1806.69749638,2725.0,2723.8,0.1024]
[1769740557709,1805.03082973,2725.0,2723.8,0.57157454]
[1769740558006,1803.92811153,2725.0,2723.8,0.57157454]
[1769740558408,1798.92844805,2725.0,2724.0,0.3359703]
[1769740558584,1787.30466208,2725.0,2724.0,0.1024]
[1769740558785,1789.69600068,2725.0,2724.0,0.61845829]
[1769740559086,1788.59328248,2725.0,2724.0,0.1024]
[1769740559613,1787.49056428,2725.0,2724.0,0.1024]
[1769740559912,1782.49101023,2725.0,2724.0,0.1024]
[1769740560211,1718.11469797,2725.0,2724.0,0.1024]
[1769740560378,1677.2363025,2725.0,2724.2,0.1024]
[1769740560879,1680.03063901,2725.0,2724.2,0.1024]
[1769740561084,1680.03063901,2725.0,2724.1,0.83241177]
[1769740561422,1680.03063901,2725.0,2723.8,0.46917454]
[1769740561592,1680.03063901,2725.0,2724.0,0.91774482]
[1769740561935,1679.73635648,2725.0,2724.0,0.91774482]
[1769740562284,1678.63374771,2725.0,2724.0,0.91774482]
[1769740562582,1637.5142605,2725.0,2723.8,3.67107195]
[1769740562800,2.38205668,2724.9,2723.9,0.73421439]
[1769740563007,2.34528385,2724.9,2723.9,0.73421439]
[1769740563187,0.95010841,2724.9,2724.0,0.1024]
[1769740563395,0.94865106,2724.9,2724.0,0.1024]
[1769740563592,1636.27097029,2725.0,2724.0,0.1024]
[1769740563811,1591.15029343,2725.0,2724.0,0.1024]
[1769740564116,1583.59454027,2725.0,2724.0,0.1024]
[1769740564317,1576.97640797,2725.0,2724.0,0.1024]
[1769740564515,1576.97640797,2725.0,2724.1,0.91773429]
[1769740564683,1575.6799401,2725.0,2724.3,0.1024]
[1769740564884,1575.24103696,2725.0,2724.3,0.1024]
[1769740565111,1573.84431627,2725.0,2724.3,0.1024]
[1769740565612,1572.74167913,2725.0,2724.3,0.1024]
[1769740565991,1531.72772994,2725.0,2724.3,0.1024]
[1769740566229,1442.15760742,2725.0,2724.5,0.1024]
[1769740566538,1442.15760742,2725.0,2724.4,0.2335703]
[1769740566539,1342.60402802,2725.0,2724.9,0.3359703]
[1769740566705,1156.13126251,2725.0,2724.9,0.83855673]
[1769740566907,1022.52531,2725.0,2724.9,0.83855673]
[1769740567112,922.55726426,2725.0,2724.9,0.83855673]
[1769740567313,886.07677559,2725.0,2724.9,0.83855673]
[1769740567623,884.79633295,2725.0,2724.9,0.83855673]
[1769740567943,884.79633295,2725.0,2724.8,0.91749853]
[1769740567944,853.55458507,2725.0,2724.8,0.91749853]
[1769740568138,853.55458507,2725.0,2724.2,0.46910715]
[1769740568139,817.68069528,2725.0,2724.2,0.46910715]
[1769740568295,817.68069528,2725.0,2723.4,3.33359144]
[1769740568296,0.01111461,2724.5,2723.5,3.6716922]
[1769740568500,0.01111461,2724.5,2723.4,16.12533226]
[1769740568501,0.01111461,2723.9,2723.4,2.40594771]
[1769740568924,0.01111461,2723.7,2723.4,1.488]
[1769740569137,29.998,2723.8,2723.0,0.002]
[1769740569317,0.01111461,2723.5,2723.0,0.002]
[1769740569632,0.01111461,2723.2,2723.0,0.002]
[1769740569830,0.01111461,2723.7,2723.1,0.91806925]
[1769740569831,13.20948677,2723.6,2723.1,0.91806925]
[1769740570038,0.01111461,2723.3,2723.2,0.01079402]
[1769740570329,0.01111461,2723.5,2723.0,0.002]
[1769740570634,0.01111461,2723.5,2722.1,0.91840858]
[1769740570635,0.01111461,2723.1,2722.1,0.91840858]
[1769740570801,13.20948677,2723.4,2722.1,0.91840858]
[1769740571002,13.22060138,2723.3,2722.2,0.1024]
[1769740571200,13.20948677,2723.3,2722.4,0.1024]
[1769740571431,0.01111461,2723.2,2722.4,0.1024]
[1769740571729,0.01111461,2723.7,2722.4,0.1024]
[1769740572027,0.01111461,2723.7,2722.5,0.2335703]
[1769740572232,0.01111461,2724.5,2722.9,0.2335703]
[1769740572432,0.01111461,2724.6,2723.5,0.2335703]
[1769740572631,0.01111461,2724.6,2723.7,0.1024]
[1769740572817,0.01111461,2724.0,2723.6,0.91790277]
[1769740573001,0.01111461,2724.2,2723.6,0.91790277]
[1769740573203,0.01111461,2724.2,2723.5,0.91793647]
[1769740573422,0.01111461,2724.4,2722.8,3.672624]
[1769740573423,0.01111461,2723.7,2722.8,3.672624]
[1769740573612,0.01111461,2723.3,2723.1,0.91805015]
[1769740573820,0.01111461,2723.5,2722.8,3.67267702]
[1769740574022,0.01111461,2723.0,2722.6,3.67295355]
[1769740574225,0.01111461,2723.2,2722.8,0.91816768]
[1769740574425,0.01111461,2723.0,2722.8,0.91817107]
[1769740574628,0.01111461,2722.9,2722.1,3.67358185]
[1769740574941,0.01111461,2723.1,2722.2,0.1024]
[1769740575108,0.01111461,2722.4,2722.0,0.77]
[1769740575308,0.01111461,2722.9,2722.0,0.77]
[1769740575309,0.01111461,2722.7,2722.1,0.91840858]
[1769740575734,0.01111461,2722.6,2722.1,0.91840858]
[1769740576234,0.01111461,2722.6,2721.9,0.002]
[1769740576235,0.01111461,2722.2,2721.9,0.002]
[1769740576435,0.01111461,2722.0,2721.9,0.002]
[1769740576637,0.01111461,2722.0,2721.1,3.67493475]
[1769740576638,0.01111461,2722.2,2721.2,3.67674656]
[1769740577111,0.01111461,2722.0,2721.3,0.1024]
[1769740577316,0.01111461,2722.2,2721.3,0.1024]
[1769740577522,0.01111461,2722.0,2721.3,0.1024]
[1769740578238,0.01111461,2721.8,2721.3,0.1024]
[1769740578443,0.01111461,2721.6,2721.2,0.002]
[1769740578617,0.00906458,2721.8,2721.2,0.92070187]
[1769740578971,0.01111461,2721.5,2721.1,3.67493692]
[1769740579247,0.00906458,2721.8,2721.2,0.91870187]
[1769740579411,0.01111461,2721.6,2721.2,0.91870187]
[1769740579839,0.01111461,2722.0,2721.2,0.91870187]
[1769740580517,0.01111461,2722.0,2720.5,0.002]
[1769740580518,0.01111461,2721.4,2720.5,0.002]
[1769740580718,0.01111461,2721.2,2720.5,0.002]
[1769740580942,0.01111461,2721.4,2720.5,0.002]
[1769740581113,0.01111461,2721.2,2720.5,0.002]
[1769740581314,0.01111461,2721.4,2720.5,0.002]
[1769740581511,0.01111461,2722.0,2720.5,0.002]
[1769740581747,0.01111461,2722.0,2720.6,0.2335703]
[1769740581748,0.01111461,2721.6,2720.6,0.2335703]
[1769740582119,0.01111461,2722.0,2720.6,0.2335703]
[1769740582526,0.01111461,2721.8,2720.7,0.1024]
[1769740582742,0.01111461,2721.6,2720.9,1.02121362]
[1769740582955,0.01111461,2722.0,2720.9,1.02121362]
[1769740583132,0.01111461,2722.2,2721.0,0.2335703]
[1769740583433,0.01111461,2722.0,2721.0,0.2295703]
[1769740583634,0.01111461,2721.8,2720.9,1.01921362]
[1769740583833,0.01111461,2721.8,2721.0,14.498]
[1769740584032,0.01111461,2722.2,2720.9,1.01721362]
[1769740584250,0.01111461,2722.0,2720.9,1.01521362]
[1769740584751,0.01111461,2722.0,2720.9,1.01121362]
[1769740584953,0.01111461,2722.2,2720.9,15.50921362]
[1769740585125,0.01111461,2721.7,2720.9,15.50721362]
[1769740585469,0.01111461,2721.9,2720.9,15.50721362]
[1769740585624,0.01111461,2721.7,2720.9,15.50721362]
[1769740586252,14.0,2721.9,2720.9,0.90481362]
[1769740586442,14.01111461,2721.6,2720.9,0.90481362]
[1769740586750,14.01111461,2721.6,2720.8,0.1024]
[1769740587053,0.01111461,2721.4,2720.8,0.1024]
[1769740587353,0.01111461,2721.1,2720.7,0.002]
[1769740587552,0.01111461,2721.0,2720.7,0.002]
[1769740588049,0.01111461,2721.2,2720.5,0.002]
[1769740588247,0.01111461,2720.9,2720.5,0.002]
[1769740588419,0.01111461,2721.4,2720.5,0.92092727]
[1769740588622,0.01111461,2721.2,2720.5,0.92092727]
[1769740588818,0.01111461,2721.2,2720.5,0.002]
[1769740589020,14.0,2721.6,2720.5,0.002]
[1769740589248,0.01111461,2721.5,2720.5,0.002]
[1769740589456,0.01111461,2721.5,2720.5,0.1044]
[1769740589622,0.01111461,2721.3,2720.5,0.1044]
[1769740590029,0.01111461,2721.5,2720.5,0.1044]
[1769740591045,14.0,2722.1,2720.6,0.91891494]
[1769740591247,14.01111461,2722.0,2720.6,0.91891494]
[1769740592062,14.0,2722.0,2720.7,0.1024]
[1769740592259,14.01111461,2721.9,2720.7,0.1024]
[1769740592628,14.0,2721.2,2720.5,3.67765978]
[1769740592838,0.01111461,2721.1,2720.3,0.002]
[1769740593042,0.01111461,2721.1,2720.4,0.9189825]
[1769740593340,14.0,2721.2,2720.4,0.9189825]
[1769740593526,0.01111461,2721.3,2720.4,0.9189825]
[1769740593732,0.01111461,2721.5,2720.4,0.9189825]
[1769740594039,14.01111461,2721.7,2720.4,0.9189825]
[1769740594656,14.01111461,2721.5,2720.4,0.9189825]
[1769740595030,0.01111461,2721.3,2720.4,0.9189825]
[1769740595364,0.01111461,2721.3,2719.6,3.67692613]
[1769740595365,14.0,2720.8,2719.6,3.67692613]
[1769740595543,14.0,2720.8,2720.3,0.91901562]
[1769740595862,1.41333753,2721.3,2720.3,0.91901562]
[1769740595863,15.41333753,2721.3,2720.3,0.91901562]
[1769740596034,14.01111461,2721.3,2720.3,0.91901562]
[1769740596556,14.0,2721.3,2720.3,0.91901562]
[1769740596865,0.91816732,2722.9,2720.4,0.1024]
[1769740597075,0.01111461,2723.1,2720.4,0.1024]
[1769740597076,13.98611461,2722.1,2720.7,0.91888117]
[1769740597564,13.98611461,2722.1,2720.7,15.41888117]
[1769740597764,13.98611461,2722.1,2720.7,0.91888117]
[1769740598063,13.98611461,2721.9,2720.7,0.91888117]
[1769740598636,13.975,2722.4,2720.8,0.1024]
[1769740598942,13.98611461,2722.3,2720.8,0.1024]
[1769740599133,13.975,2722.3,2721.0,0.1024]
[1769740599463,13.975,2722.0,2721.0,0.1024]
[1769740599636,13.975,2722.5,2721.0,0.1024]
[1769740599835,15.37361146,2722.5,2721.0,0.1024]
[1769740600045,0.01111461,2722.1,2721.0,0.1024]
[1769740600265,13.975,2722.0,2720.9,0.91881362]
[1769740600512,13.975,2721.8,2720.9,0.91881362]
[1769740600775,13.975,2721.5,2720.8,0.91882533]
[1769740600932,0.01111461,2721.6,2720.5,3.78015415]
[1769740600933,13.98611461,2721.4,2720.5,3.78015415]
[1769740601137,13.98611461,2721.4,2720.6,3.67563262]
[1769740601338,13.975,2721.4,2720.6,3.67563262]
[1769740604300,0.01111461,2721.6,2720.3,0.002]
[1769740604301,13.975,2720.9,2720.3,0.002]
[1769740604446,13.98611461,2720.9,2720.1,0.91907509]
[1769740604651,15.38472607,2720.9,2720.1,0.91905762]
[1769740605497,15.38472607,2720.9,2720.0,3.67645448]
[1769740605498,13.975,2720.6,2720.0,0.91910759]
[1769740605661,0.01111461,2720.7,2719.4,4.70276657]
[1769740605662,13.975,2720.3,2719.4,1.02558254]
[1769740605851,13.975,2720.1,2719.4,0.25658254]
[1769740606050,13.975,2719.9,2719.1,0.002]
[1769740606250,13.85997222,2719.9,2719.1,0.002]
[1769740606449,13.61115878,2719.9,2719.1,0.002]
[1769740606668,13.65124775,2720.6,2719.1,0.002]
[1769740606870,13.60124775,2720.2,2719.1,0.002]
[1769740607278,12.68054523,2720.2,2719.1,0.002]
[1769740607448,12.68054523,2720.2,2719.1,0.1044]
[1769740607653,13.65124775,2720.7,2719.1,0.1044]
[1769740608193,13.65124775,2720.7,2719.3,0.1024]
[1769740608884,0.01111461,2720.4,2719.2,0.92138805]
[1769740609095,13.65124775,2720.1,2719.2,0.92138805]
[1769740610086,13.65124775,2720.1,2719.2,0.002]
[1769740610259,13.65124775,2720.1,2719.4,0.002]
[1769740611098,13.65124775,2719.9,2719.4,0.002]
[1769740611261,13.64919772,2719.9,2719.4,0.002]
[1769740611610,13.65124775,2719.0,2718.2,0.91970544]
[1769740611882,0.01111461,2719.1,2718.1,0.25651289]
[1769740611883,13.65124775,2718.6,2718.1,0.002]
[1769740612085,13.6491975,2718.6,2718.1,0.002]
[1769740612277,13.6491975,2718.6,2717.8,0.92183993]
[1769740612278,13.65124775,2718.4,2717.8,0.002]
[1769740612475,13.64919772,2718.4,2717.8,0.002]
[1769740613105,13.65124775,2718.2,2717.0,0.002]
[1769740613571,13.66236236,2717.9,2717.0,0.002]
[1769740613896,13.66031233,2717.9,2717.0,0.002]
[1769740614099,0.01111461,2717.7,2717.0,0.002]
[1769740614255,13.66031233,2717.9,2717.0,0.002]
[1769740614962,1.36603123,2718.4,2717.0,0.1044]
[1769740614963,13.65124775,2718.4,2717.0,0.1044]
[1769740615710,13.08546261,2718.2,2717.0,0.1044]
[1769740615861,13.08546261,2718.0,2717.0,0.1044]
[1769740616199,13.08546261,2718.0,2717.2,0.1024]
[1769740616362,13.08546261,2718.5,2717.2,0.1024]
[1769740616956,13.09657722,2718.4,2717.2,0.1024]
[1769740617190,14.40623494,2718.4,2717.2,0.1024]
[1769740617592,13.08546261,2718.4,2717.2,0.1024]
[1769740618262,13.09657722,2718.3,2717.3,0.92003091]
[1769740619185,0.01111461,2719.3,2717.3,0.92003091]
[1769740619186,0.01111461,2718.6,2717.3,0.92003091]
[1769740619887,0.01111461,2718.4,2717.3,0.92003091]
[1769740620084,13.09657722,2718.6,2717.3,0.92003091]
[1769740620287,0.93038633,2719.6,2717.6,0.1024]
[1769740620288,0.01111461,2719.4,2717.6,0.1024]
[1769740620511,0.01111461,2719.5,2717.6,12.74229381]
[1769740620667,13.08546261,2720.1,2717.8,12.74229381]
[1769740620984,0.01111461,2719.3,2717.9,0.1024]
[1769740621188,0.01111461,2719.3,2717.9,14.6024]
[1769740621699,0.01111461,2719.3,2717.5,0.9199632]
[1769740621700,0.01111461,2719.5,2717.6,0.3359703]
[1769740621869,0.01111461,2719.2,2717.6,0.3359703]
[1769740622072,0.01111461,2719.2,2717.6,0.1024]
[1769740622369,0.01111461,2718.8,2717.7,0.91989549]
[1769740622595,13.09657722,2719.5,2717.7,0.91989549]
[1769740622798,0.01111461,2719.1,2717.7,0.91989549]
[1769740623519,13.08546261,2720.0,2718.0,0.1024]
[1769740623722,13.85153891,2720.5,2718.3,12.63989381]
[1769740623867,0.7660763,2720.5,2718.8,0.1024]
[1769740624066,0.01111461,2720.2,2718.8,0.1024]
[1769740624318,0.7660763,2720.5,2719.0,0.1024]
[1769740624474,13.09657722,2721.5,2719.3,0.2335703]
[1769740624675,13.09657722,2721.5,2718.9,0.91948949]
[1769740624676,0.01111461,2721.1,2719.4,12.74229381]
[1769740624886,0.01111461,2721.1,2719.4,0.1024]
[1769740624887,0.01111461,2720.9,2719.4,0.1024]
[1769740625479,0.01111461,2720.3,2718.9,0.91948949]
[1769740625681,0.00906458,2720.3,2719.0,0.1024]
[1769740625874,0.01111461,2720.7,2719.0,0.1024]
[1769740626083,13.09657722,2721.1,2719.2,0.1024]
[1769740626280,0.01111461,2720.7,2719.4,0.1024]
[1769740626478,13.09657722,2720.7,2719.4,0.1024]
[1769740626870,0.01111461,2720.9,2719.4,0.1024]
[1769740627469,0.01111461,2720.4,2719.3,0.91935424]
[1769740627689,0.01111461,2720.7,2719.3,0.91935424]
[1769740627973,0.01111461,2720.7,2719.4,0.1024]
[1769740628171,13.57567399,2722.0,2719.6,0.1024]
[1769740628475,0.01111461,2720.6,2719.6,0.1024]
[1769740629000,0.01111461,2721.0,2719.6,0.1024]
[1769740629201,0.01111461,2720.8,2719.6,0.1024]
[1769740629718,0.01111461,2720.6,2719.6,0.1024]
[1769740630369,0.01111461,2720.5,2719.7,0.91921903]
[1769740630644,0.01111461,2720.3,2719.7,0.91921903]
[1769740630811,0.01111461,2720.5,2719.7,0.91921903]
[1769740631597,0.01111461,2720.7,2719.7,0.91921903]
[1769740632374,0.01111461,2720.7,2719.6,3.67687612]
[1769740632776,0.01111461,2720.5,2719.6,3.67687612]
[1769740633185,0.01111461,2720.5,2719.1,0.71363345]
[1769740633186,0.01111461,2719.9,2719.2,0.9193685]
[1769740633385,0.00906458,2719.8,2719.1,1.6330357]
[1769740633587,13.09657722,2720.1,2719.1,0.71363345]
[1769740633793,0.01111461,2719.9,2719.3,0.91932846]
[1769740634016,0.01111461,2719.9,2719.5,0.91928047]
[1769740634183,0.01111461,2720.1,2719.5,0.91928047]
[1769740634384,0.01111461,2720.1,2719.2,0.91938805]
[1769740634783,0.01111461,2719.9,2719.1,1.63303619]
[1769740635315,0.01111461,2720.1,2719.1,1.63303619]
[1769740635690,0.01111461,2720.3,2719.1,1.63303619]
[1769740636322,13.09657722,2720.7,2719.1,1.63303619]
[1769740636483,13.08546261,2721.2,2719.3,12.87346411]
[1769740636681,0.01111461,2720.8,2719.2,0.1024]
[1769740637124,0.01111461,2720.6,2719.2,0.1024]
[1769740637422,0.01111461,2720.8,2719.2,0.1024]
[1769740637816,0.01111461,2720.3,2719.1,1.63303619]
[1769740637988,0.00906458,2720.3,2719.1,1.63303619]
[1769740638299,0.01111461,2720.1,2719.1,1.63303619]
[1769740638989,0.01111461,2720.6,2719.1,1.63303619]
[1769740639415,0.01111461,2720.4,2719.1,1.63303619]
[1769740640115,0.01111461,2720.7,2719.2,0.1024]
[1769740640635,0.01111461,2720.7,2719.4,0.1024]
[1769740641120,0.01111461,2721.2,2719.5,0.2335703]
[1769740641292,0.01111461,2721.2,2719.5,12.87346411]
[1769740641716,13.09657722,2721.0,2719.4,0.1024]
[1769740641925,13.08546261,2720.7,2719.4,0.1024]
[1769740642126,0.01111461,2720.8,2719.4,0.1024]
[1769740642532,0.01111461,2721.2,2719.5,0.2335703]
[1769740642697,0.01111461,2721.4,2719.8,0.91918523]
[1769740642901,0.01111461,2721.2,2719.8,0.91918523]
[1769740643529,0.00911461,2721.0,2719.8,0.91918523]
[1769740643732,0.01111461,2720.6,2719.7,0.91920895]
[1769740643934,0.01111461,2720.2,2719.6,0.9192485]
[1769740644136,0.00706451,2720.2,2719.7,0.91919978]
[1769740644306,0.00711461,2720.4,2719.6,0.91923343]
[1769740644506,0.00511461,2720.4,2719.7,0.9192136]
[1769740644729,0.00311461,2720.4,2719.3,0.1024]
[1769740644931,0.00911461,2720.6,2719.3,0.1024]
[1769740645134,0.00911461,2720.6,2719.2,3.67750841]
[1769740645135,0.01111461,2720.0,2719.2,3.67750841]
[1769740645332,0.00911461,2720.0,2719.2,3.67750841]
[1769740645506,0.01111461,2720.4,2719.2,3.67750841]
[1769740646325,0.00711461,2720.6,2719.2,3.67750841]
[1769740646839,0.00711461,2720.6,2719.4,0.91932043]
[1769740648053,0.01111461,2720.4,2719.4,0.91932043]
[1769740648548,0.01111461,2720.3,2719.4,0.91932043]
[1769740648709,0.01111461,2720.1,2719.3,0.91933059]
[1769740648910,0.01111461,2719.9,2719.2,0.91938805]
[1769740649209,0.01111461,2719.9,2719.1,0.91939916]
[1769740649210,0.01111461,2719.5,2719.1,0.91939916]
[1769740649441,0.01111461,2719.9,2719.1,0.91939916]
[1769740650025,0.01111461,2720.1,2719.1,0.91939916]
[1769740650779,13.66134951,2721.0,2719.2,0.1024]
[1769740650920,13.66134951,2721.0,2719.3,0.91935424]
[1769740650921,0.01111461,2720.2,2719.3,0.91935424]
[1769740652322,0.01111461,2720.8,2719.3,0.91935424]
[1769740652521,0.01111461,2720.8,2719.4,0.1024]
[1769740652821,0.01111461,2720.6,2719.5,0.91928663]
[1769740653322,0.01111461,2721.4,2719.6,13.77024945]
[1769740653543,14.56858541,2722.3,2720.0,13.77024945]
[1769740653835,0.01111461,2721.7,2720.0,13.77024945]
[1769740654023,0.01111461,2721.7,2720.1,0.1024]
[1769740654359,0.01111461,2722.0,2720.1,13.77024945]
[1769740654565,0.01111461,2721.8,2720.1,13.77024945]
[1769740654937,0.01111461,2721.8,2720.3,0.1024]
[1769740654938,0.01111461,2721.6,2720.3,0.1024]
[1769740655256,1.34216279,2721.6,2720.3,0.1024]
[1769740655452,0.01111461,2721.8,2720.3,0.1024]
[1769740656824,1.33584269,2722.4,2720.5,13.71864218]
[1769740657031,0.01111461,2722.7,2720.7,13.71864218]
[1769740657255,0.01111461,2722.7,2720.9,13.71864218]
[1769740657256,0.01111461,2722.5,2720.9,13.71864218]
[1769740657453,0.01111461,2722.5,2721.1,13.61624218]
[1769740657768,0.01111461,2722.8,2721.2,13.61624218]
[1769740657966,0.01111461,2722.6,2720.9,13.71864218]
[1769740658777,0.01111461,2722.9,2721.2,13.84981248]
[1769740658928,0.01111461,2723.5,2721.6,13.71864218]
[1769740660367,0.01111461,2723.5,2721.8,13.71864218]
[1769740661066,13.29936723,2724.0,2721.9,14.53471824]
[1769740661280,0.01111461,2724.3,2722.4,0.1024]
[1769740661429,0.01111461,2723.9,2722.4,0.1024]
[1769740661633,0.01111461,2723.9,2722.5,0.1024]
[1769740661832,0.01111461,2724.2,2722.5,13.71864218]
[1769740662086,13.28825262,2724.8,2721.9,13.11186177]
[1769740662087,13.28825262,2724.8,2722.7,13.61624218]
[1769740662232,0.01111461,2724.5,2723.1,13.71864218]
[1769740662436,0.01111461,2724.3,2723.1,14.48864218]
[1769740662631,0.01111461,2724.2,2723.1,14.48864218]
[1769740662854,0.01111461,2724.3,2723.3,13.71864218]
[1769740663055,0.01111461,2724.4,2723.4,0.1024]
[1769740663263,0.01111461,2724.5,2723.4,13.71864218]
[1769740663461,0.01111461,2724.9,2723.4,13.71864218]
[1769740663774,0.01111461,2724.0,2723.4,0.1024]
[1769740663975,0.01111461,2724.2,2723.4,0.1024]
[1769740664270,0.01111461,2723.9,2723.4,0.1024]
[1769740664434,0.01111461,2723.9,2723.2,0.9180376]
[1769740664435,0.01111461,2723.6,2723.2,0.9180376]
[1769740664631,0.01111461,2723.2,2722.7,3.67281481]
[1769740664860,0.01111461,2723.4,2721.9,15.3046845]
[1769740665046,0.01111461,2723.4,2722.0,3.67369924]
[1769740665251,0.01111461,2723.9,2722.0,3.67369924]
[1769740665252,0.01111461,2723.8,2722.3,13.71864218]
[1769740665430,0.01111461,2723.0,2722.3,0.1024]
[1769740665635,0.01111461,2722.9,2722.0,3.67369924]
[1769740665834,0.01111461,2723.0,2722.0,3.67369924]
[1769740666068,0.01111461,2722.6,2722.1,0.1024]
[1769740666252,0.01111461,2723.0,2722.1,0.1024]
[1769740666563,0.01111461,2722.8,2722.1,0.1024]
[1769740666765,0.01111461,2722.7,2722.0,3.67369924]
[1769740666935,0.01111461,2722.8,2722.2,0.91837484]
[1769740667131,0.01111461,2722.6,2722.2,0.91837484]
[1769740667359,0.00906458,2722.8,2722.2,0.91837484]
[1769740668069,0.01111461,2722.0,2720.4,13.61624218]
[1769740668228,0.01111461,2721.8,2721.0,0.91877986]
[1769740668430,13.29936723,2723.3,2721.0,14.53502204]
[1769740668630,0.01111461,2723.1,2721.1,0.1024]
[1769740668834,0.001,2723.4,2721.6,0.1024]
[1769740669140,0.01111461,2723.3,2721.6,0.1024]
[1769740669334,0.01111461,2722.9,2721.6,0.1024]
[1769740669867,0.01111461,2723.1,2721.6,0.1024]
[1769740670029,1.34216279,2723.1,2721.6,0.1024]
[1769740670235,1.33104818,2723.1,2721.6,13.71864218]
[1769740670446,0.01111461,2723.0,2721.6,0.1024]
[1769740670948,0.01111461,2723.0,2721.8,0.1024]
[1769740671150,0.01111461,2723.2,2721.8,0.1024]
[1769740672566,0.001,2723.4,2721.8,0.1024]
[1769740672772,1.33103672,2723.4,2721.8,0.1024]
[1769740672971,0.01111461,2723.1,2721.9,0.91847606]
[1769740673268,1.33103672,2723.4,2722.0,0.1024]
[1769740673573,0.01111461,2723.3,2722.0,0.1024]
[1769740673951,0.001,2723.4,2722.0,0.1024]
[1769740674151,13.29936723,2723.3,2721.9,0.91847606]
[1769740674370,0.01111461,2723.1,2721.9,0.91847606]
[1769740675070,0.01111461,2723.1,2721.9,0.1024]
[1769740675642,0.01111461,2723.3,2721.9,0.1024]
[1769740676036,700.00186387,2725.0,2721.9,0.1024]
[1769740676247,0.01111461,2727.5,2724.9,16.36651463]
[1769740676469,0.01111461,2727.5,2723.4,0.01111461]
[1769740676470,0.01111461,2727.9,2727.1,0.19149369]
[1769740676671,0.4606536,2728.9,2726.8,0.1024]
[1769740676672,0.01111461,2727.4,2726.8,0.1024]
[1769740676886,42.39546127,2728.8,2727.4,0.01111461]
[1769740677098,42.39546127,2728.8,2727.0,0.1024]
[1769740677099,0.01111461,2728.3,2727.2,0.1024]
[1769740677302,0.4606536,2728.9,2727.2,0.1024]
[1769740677445,0.4606536,2728.9,2727.4,0.1024]
[1769740677785,0.01111461,2728.7,2727.6,0.1024]
[1769740677990,0.01111461,2728.4,2727.6,0.1024]
[1769740678154,0.01111461,2728.4,2727.1,0.91672472]
[1769740678155,0.01111461,2727.5,2727.1,0.91672472]
[1769740678342,0.01111461,2727.8,2727.1,0.91672472]
[1769740678670,0.01111461,2728.5,2727.1,14.89641194]
[1769740678870,0.01111461,2728.4,2727.1,13.02037752]
[1769740679082,0.01111461,2728.6,2726.8,3.6668989]
[1769740679250,0.01111461,2727.9,2726.8,3.6668989]
[1769740679452,0.01111461,2728.1,2727.0,14.5]
[1769740679663,0.01111461,2727.3,2726.7,0.19162364]
[1769740679867,0.00205033,2727.1,2726.8,0.91682558]
[1769740680061,0.01111461,2727.3,2726.8,0.91682558]
[1769740680275,0.01111461,2727.3,2726.9,0.1024]
[1769740680870,0.01111461,2726.5,2725.7,0.0925802]
[1769740681170,0.01111461,2727.1,2725.7,0.0925802]
[1769740681171,0.01111461,2728.6,2725.8,0.91716193]
[1769740681357,0.01111461,2730.5,2728.5,12.11525327]
[1769740681556,12.87238196,2730.9,2729.1,0.19135274]
[1769740681868,0.01111461,2730.2,2729.1,0.19135274]
[1769740682065,0.01111461,2730.8,2729.1,0.19135274]
[1769740682066,0.01111461,2730.5,2729.1,0.19135274]
[1769740682268,0.01111461,2730.6,2729.1,0.19135274]
[1769740682465,0.01111461,2730.7,2729.2,14.5]
[1769740682670,0.01111461,2730.2,2729.2,14.5]
[1769740682869,0.01111461,2730.0,2729.3,0.1024]
[1769740683050,0.01111461,2730.2,2729.4,0.91595222]